[Event "*** Titled Tuesday Blitz"]
[Site "Chess.com"]
[Date "2019.03.05"]
[Round "2"]
[White "mikhaillushenkov"]
[Black "wonderfultime"]
[Result "0-1"]
[WhiteElo "2622"]
[BlackElo "2918"]
[TimeControl "180+2"]
[EndTime "13:24:17 PST"]
[Termination "wonderfultime won by resignation"]

1. Nf3 {[%clk 0:03:01.9]} 1... Nf6 {[%clk 0:02:56.9]} 2. c4 {[%clk 0:03:01.8]}
2... c6 {[%clk 0:02:58.1]} 3. Nc3 {[%clk 0:02:59.8]} 3... d5 {[%clk 0:02:59.3]}
4. e3 {[%clk 0:02:59.5]} 4... a6 {[%clk 0:03:00.3]} 5. Qc2 {[%clk 0:02:56]} 5...
e6 {[%clk 0:02:48.5]} 6. b3 {[%clk 0:02:54.1]} 6... Nbd7 {[%clk 0:02:46.2]} 7.
d4 {[%clk 0:02:53.3]} 7... b5 {[%clk 0:02:42.2]} 8. Bd3 {[%clk 0:02:53.1]} 8...
Be7 {[%clk 0:02:37.1]} 9. O-O {[%clk 0:02:52.9]} 9... O-O {[%clk 0:02:38.4]} 10.
e4 {[%clk 0:02:48.6]} 10... b4 {[%clk 0:02:13.1]} 11. Na4 {[%clk 0:02:24.1]}
11... dxe4 {[%clk 0:02:11.7]} 12. Bxe4 {[%clk 0:02:26]} 12... Nxe4 {[%clk
0:02:12.9]} 13. Qxe4 {[%clk 0:02:14]} 13... Bb7 {[%clk 0:02:10.2]} 14. Bb2
{[%clk 0:02:07]} 14... Qc7 {[%clk 0:02:04.2]} 15. c5 {[%clk 0:01:49.6]} 15...
Rfd8 {[%clk 0:01:56.7]} 16. Rad1 {[%clk 0:01:46]} 16... a5 {[%clk 0:01:57.2]}
17. Ne5 {[%clk 0:01:39.2]} 17... Nxe5 {[%clk 0:01:30.8]} 18. dxe5 {[%clk
0:01:41.1]} 18... Ba6 {[%clk 0:01:22.9]} 19. Rfe1 {[%clk 0:01:36.1]} 19... Rxd1
{[%clk 0:00:44.5]} 20. Rxd1 {[%clk 0:01:34]} 20... Rd8 {[%clk 0:00:46.4]} 21.
Rd6 {[%clk 0:01:34.6]} 21... Bb5 {[%clk 0:00:47.1]} 22. Nb6 {[%clk 0:01:27.5]}
22... h6 {[%clk 0:00:31.9]} 23. h4 {[%clk 0:01:28.3]} 23... Qb7 {[%clk
0:00:22.6]} 24. h5 {[%clk 0:01:19]} 24... Bxd6 {[%clk 0:00:20.5]} 25. exd6
{[%clk 0:01:20.9]} 25... f6 {[%clk 0:00:19.4]} 26. Qxe6+ {[%clk 0:00:55.4]}
26... Qf7 {[%clk 0:00:20.3]} 27. Qg4 {[%clk 0:00:53.1]} 27... Kh8 {[%clk
0:00:19.4]} 28. d7 {[%clk 0:00:52.3]} 28... Qe7 {[%clk 0:00:20.2]} 29. Kh2
{[%clk 0:00:48.4]} 29... Qxc5 {[%clk 0:00:20.7]} 30. Qe6 {[%clk 0:00:29.3]}
30... Qxh5+ {[%clk 0:00:17.1]} 31. Kg1 {[%clk 0:00:30.3]} 31... Qd1+ {[%clk
0:00:17.1]} 32. Kh2 {[%clk 0:00:31.7]} 32... Qh5+ {[%clk 0:00:19]} 33. Kg1
{[%clk 0:00:32.8]} 33... Qd1+ {[%clk 0:00:12]} 34. Kh2 {[%clk 0:00:33.9]} 34...
Qe2 {[%clk 0:00:13.5]} 35. Qxe2 {[%clk 0:00:20.8]} 35... Bxe2 {[%clk 0:00:14.3]}
36. f3 {[%clk 0:00:22.7]} 36... c5 {[%clk 0:00:14.3]} 37. Bc1 {[%clk 0:00:21.5]}
37... Bb5 {[%clk 0:00:15.5]} 38. Bf4 {[%clk 0:00:23.1]} 38... Bxd7 {[%clk
0:00:16.2]} 39. Bc7 {[%clk 0:00:24.6]} 39... Re8 {[%clk 0:00:17.4]} 40. Nc4
{[%clk 0:00:12.9]} 40... Re2 {[%clk 0:00:16.6]} 41. Bxa5 {[%clk 0:00:12.5]}
41... Rxa2 {[%clk 0:00:17.7]} 42. Bb6 {[%clk 0:00:14.4]} 42... Be6 {[%clk
0:00:18.7]} 43. Na5 {[%clk 0:00:15.4]} 43... Rc2 {[%clk 0:00:18.6]} 44. Nb7
{[%clk 0:00:16.6]} 44... c4 {[%clk 0:00:18.7]} 45. bxc4 {[%clk 0:00:16.7]} 45...
b3 {[%clk 0:00:20.2]} 46. Nc5 {[%clk 0:00:18.6]} 46... b2 {[%clk 0:00:20.8]} 0-1

[Event "*** Titled Tuesday Blitz"]
[Site "Chess.com"]
[Date "2019.03.05"]
[Round "2"]
[White "CookiesAndIceCream"]
[Black "Rashad_Zeynalli"]
[Result "1-0"]
[WhiteElo "2398"]
[BlackElo "2392"]
[TimeControl "180+2"]
[EndTime "13:24:30 PST"]
[Termination "CookiesAndIceCream won by resignation"]

1. e4 {[%clk 0:03:01.9]} 1... d6 {[%clk 0:03:00.1]} 2. d4 {[%clk 0:03:02.5]}
2... Nf6 {[%clk 0:03:00.8]} 3. Nc3 {[%clk 0:03:03.7]} 3... g6 {[%clk 0:03:01.6]}
4. Nf3 {[%clk 0:03:04.2]} 4... Bg7 {[%clk 0:03:02.7]} 5. Be2 {[%clk 0:03:05.5]}
5... O-O {[%clk 0:03:03.9]} 6. O-O {[%clk 0:03:06.7]} 6... e6 {[%clk 0:03:05.4]}
7. a4 {[%clk 0:03:01.7]} 7... Nc6 {[%clk 0:03:05.1]} 8. d5 {[%clk 0:03:00.8]}
8... exd5 {[%clk 0:03:03.7]} 9. exd5 {[%clk 0:03:01.3]} 9... Nb4 {[%clk
0:03:02.5]} 10. h3 {[%clk 0:02:54.1]} 10... Bf5 {[%clk 0:03:00.4]} 11. Nd4
{[%clk 0:02:52.3]} 11... Bd7 {[%clk 0:03:01.8]} 12. Bc4 {[%clk 0:02:50.6]} 12...
Re8 {[%clk 0:02:53.3]} 13. Be3 {[%clk 0:02:47.3]} 13... Nh5 {[%clk 0:02:38.5]}
14. Qd2 {[%clk 0:02:32.3]} 14... Qh4 {[%clk 0:02:34.8]} 15. Nf3 {[%clk
0:02:25.2]} 15... Qxc4 {[%clk 0:02:33.3]} 16. Rfe1 {[%clk 0:02:14.8]} 16... Nf6
{[%clk 0:02:19.4]} 17. Rad1 {[%clk 0:02:09.1]} 17... Ne4 {[%clk 0:02:09.1]} 18.
Nxe4 {[%clk 0:02:02.1]} 18... Rxe4 {[%clk 0:02:11]} 19. Ng5 {[%clk 0:01:55.3]}
19... Re7 {[%clk 0:01:58.2]} 20. c3 {[%clk 0:01:53.4]} 20... Na6 {[%clk
0:01:52.9]} 21. a5 {[%clk 0:01:48.5]} 21... Nc5 {[%clk 0:01:47.4]} 22. Bxc5
{[%clk 0:01:33.8]} 22... Rxe1+ {[%clk 0:01:45.6]} 23. Rxe1 {[%clk 0:01:34.1]}
23... Qxc5 {[%clk 0:01:41.8]} 24. Re7 {[%clk 0:01:32.9]} 24... Be8 {[%clk
0:01:29.3]} 25. Qe2 {[%clk 0:01:15]} 25... Bb5 {[%clk 0:01:13.9]} 26. Qf3 {[%clk
0:01:03.3]} 26... Rf8 {[%clk 0:00:19.6]} 27. Rxf7 {[%clk 0:00:45.8]} 27... Re8
{[%clk 0:00:20.3]} 28. Ne6 {[%clk 0:00:44]} 28... Rxe6 {[%clk 0:00:12]} 29. dxe6
{[%clk 0:00:41.2]} 29... Bc4 {[%clk 0:00:11.1]} 30. Re7 {[%clk 0:00:31.8]} 30...
Qf5 {[%clk 0:00:09.3]} 31. Qe3 {[%clk 0:00:17.1]} 31... Qf8 {[%clk 0:00:05]} 32.
Rxc7 {[%clk 0:00:14.2]} 32... Bd5 {[%clk 0:00:04.8]} 33. e7 {[%clk 0:00:13.7]}
33... Qe8 {[%clk 0:00:04.9]} 34. Rd7 {[%clk 0:00:12.6]} 34... Bc6 {[%clk
0:00:04.4]} 35. Rd8 {[%clk 0:00:13.4]} 35... Kf7 {[%clk 0:00:05.4]} 36. Rxe8
{[%clk 0:00:14.4]} 36... Bxe8 {[%clk 0:00:07.3]} 37. Qxa7 {[%clk 0:00:15.2]}
37... Bc6 {[%clk 0:00:07.9]} 38. a6 {[%clk 0:00:15]} 38... bxa6 {[%clk
0:00:08.8]} 39. Qxa6 {[%clk 0:00:16]} 39... Be8 {[%clk 0:00:09.8]} 40. Qxd6
{[%clk 0:00:17.3]} 40... Bf6 {[%clk 0:00:10.8]} 41. b4 {[%clk 0:00:18.5]} 41...
Bxe7 {[%clk 0:00:12.2]} 42. Qf4+ {[%clk 0:00:19.8]} 42... Bf6 {[%clk 0:00:13.5]}
43. Qc4+ {[%clk 0:00:19.3]} 43... Ke7 {[%clk 0:00:14.7]} 44. b5 {[%clk
0:00:20.7]} 44... Bf7 {[%clk 0:00:16]} 45. Qb4+ {[%clk 0:00:22.1]} 45... Kd7
{[%clk 0:00:17.4]} 46. c4 {[%clk 0:00:23.3]} 46... Bd4 {[%clk 0:00:16.3]} 47. c5
{[%clk 0:00:24.1]} 47... Be5 {[%clk 0:00:17.4]} 48. c6+ {[%clk 0:00:25.1]} 48...
Ke6 {[%clk 0:00:18.6]} 49. b6 {[%clk 0:00:25.4]} 49... Bd6 {[%clk 0:00:20]} 50.
Qb5 {[%clk 0:00:25.5]} 50... Be8 {[%clk 0:00:20.8]} 51. b7 {[%clk 0:00:26.2]}
51... Bc7 {[%clk 0:00:21.7]} 52. b8=Q {[%clk 0:00:26.7]} 1-0

[Event "*** Titled Tuesday Blitz"]
[Site "Chess.com"]
[Date "2019.03.05"]
[Round "2"]
[White "DACF2905"]
[Black "1995Tiger"]
[Result "1/2-1/2"]
[WhiteElo "2061"]
[BlackElo "1921"]
[TimeControl "180+2"]
[EndTime "13:24:32 PST"]
[Termination "Game drawn - insufficient material"]

1. e4 {[%clk 0:03:00.7]} 1... e6 {[%clk 0:03:00.6]} 2. d4 {[%clk 0:03:00.7]}
2... d5 {[%clk 0:03:01.1]} 3. Nc3 {[%clk 0:02:58.1]} 3... Nf6 {[%clk 0:03:01.3]}
4. e5 {[%clk 0:02:58.3]} 4... Nfd7 {[%clk 0:02:59.7]} 5. f4 {[%clk 0:03:00.2]}
5... c5 {[%clk 0:02:59.5]} 6. Nf3 {[%clk 0:03:00.8]} 6... Nc6 {[%clk 0:02:59.9]}
7. Be3 {[%clk 0:03:01.2]} 7... cxd4 {[%clk 0:02:59.7]} 8. Nxd4 {[%clk
0:03:03.1]} 8... Bc5 {[%clk 0:03:01]} 9. Qd2 {[%clk 0:03:04.2]} 9... a6 {[%clk
0:02:58.9]} 10. O-O-O {[%clk 0:03:05.2]} 10... O-O {[%clk 0:02:58.4]} 11. g3
{[%clk 0:03:06.3]} 11... Nxd4 {[%clk 0:02:56.1]} 12. Bxd4 {[%clk 0:03:06.3]}
12... b5 {[%clk 0:02:57.2]} 13. Bg2 {[%clk 0:03:05.9]} 13... Bb7 {[%clk
0:02:50.5]} 14. Kb1 {[%clk 0:03:05.1]} 14... b4 {[%clk 0:02:45.8]} 15. Ne2
{[%clk 0:03:05.9]} 15... a5 {[%clk 0:02:42.9]} 16. f5 {[%clk 0:03:04.4]} 16...
Qc7 {[%clk 0:02:23.7]} 17. Bxc5 {[%clk 0:03:00.4]} 17... Nxc5 {[%clk 0:01:19.7]}
18. Qf4 {[%clk 0:02:57.3]} 18... exf5 {[%clk 0:01:06.7]} 19. Nd4 {[%clk
0:02:56.5]} 19... Ne6 {[%clk 0:01:04.1]} 20. Qxf5 {[%clk 0:02:55.8]} 20... Nxd4
{[%clk 0:00:51.2]} 21. Rxd4 {[%clk 0:02:53.4]} 21... Rfe8 {[%clk 0:00:51.6]} 22.
Re1 {[%clk 0:02:52.2]} 22... g6 {[%clk 0:00:42.2]} 23. Qg5 {[%clk 0:02:45.6]}
23... Rac8 {[%clk 0:00:42.5]} 24. Rd2 {[%clk 0:02:43.8]} 24... a4 {[%clk
0:00:40.3]} 25. h4 {[%clk 0:02:43.1]} 25... a3 {[%clk 0:00:39.7]} 26. h5 {[%clk
0:02:42.8]} 26... axb2 {[%clk 0:00:33.2]} 27. hxg6 {[%clk 0:02:43.5]} 27... hxg6
{[%clk 0:00:31.9]} 28. e6 {[%clk 0:02:38.3]} 28... fxe6 {[%clk 0:00:32.6]} 29.
Rh1 {[%clk 0:02:34.6]} 29... Re7 {[%clk 0:00:13.6]} 30. Qxg6+ {[%clk 0:02:33.9]}
30... Rg7 {[%clk 0:00:14]} 31. Qxe6+ {[%clk 0:02:34.8]} 31... Qf7 {[%clk
0:00:15.6]} 32. Qxf7+ {[%clk 0:02:33.3]} 32... Kxf7 {[%clk 0:00:15.7]} 33. Bxd5+
{[%clk 0:02:34.4]} 33... Bxd5 {[%clk 0:00:16.5]} 34. Rxd5 {[%clk 0:02:36.3]}
34... Rxg3 {[%clk 0:00:17.5]} 35. Kxb2 {[%clk 0:02:34]} 35... Rgc3 {[%clk
0:00:18.5]} 36. Rh2 {[%clk 0:02:34]} 36... R8c4 {[%clk 0:00:19.2]} 37. Rd6
{[%clk 0:02:33.5]} 37... Ke7 {[%clk 0:00:20.3]} 38. Rb6 {[%clk 0:02:34.2]} 38...
Kd7 {[%clk 0:00:20]} 39. Rh7+ {[%clk 0:02:32.9]} 39... Kc8 {[%clk 0:00:21.1]}
40. Rg6 {[%clk 0:02:31.9]} 40... Rxc2+ {[%clk 0:00:22]} 41. Kb3 {[%clk
0:02:33.4]} 41... R2c3+ {[%clk 0:00:22.9]} 42. Ka4 {[%clk 0:02:32.7]} 42... b3+
{[%clk 0:00:23.6]} 43. Kb5 {[%clk 0:02:33.9]} 43... Rc5+ {[%clk 0:00:24]} 44.
Kb6 {[%clk 0:02:35.2]} 44... Kb8 {[%clk 0:00:19.3]} 45. axb3 {[%clk 0:02:33.6]}
45... Rc8 {[%clk 0:00:17.9]} 46. b4 {[%clk 0:02:34.6]} 46... Rb3 {[%clk
0:00:15.7]} 47. b5 {[%clk 0:02:35.6]} 47... Rf3 {[%clk 0:00:15.4]} 48. Rgg7
{[%clk 0:02:32.1]} 48... Rf6+ {[%clk 0:00:15.9]} 49. Ka5 {[%clk 0:02:33.3]}
49... Rcf8 {[%clk 0:00:15.1]} 50. Rb7+ {[%clk 0:02:32.7]} 50... Kc8 {[%clk
0:00:15.9]} 51. Rhc7+ {[%clk 0:02:31.6]} 51... Kd8 {[%clk 0:00:17]} 52. Ra7
{[%clk 0:02:32.2]} 52... Rf1 {[%clk 0:00:16.7]} 53. Rcb7 {[%clk 0:02:31.7]}
53... Ra1+ {[%clk 0:00:17.3]} 54. Kb6 {[%clk 0:02:33.2]} 54... Rf6+ {[%clk
0:00:18]} 55. Kc5 {[%clk 0:02:34.2]} 55... Rxa7 {[%clk 0:00:18.5]} 56. Rxa7
{[%clk 0:02:36.1]} 56... Kc8 {[%clk 0:00:19.7]} 57. Re7 {[%clk 0:02:35]} 57...
Rh6 {[%clk 0:00:19.4]} 58. Kb4 {[%clk 0:02:36.1]} 58... Kd8 {[%clk 0:00:19.6]}
59. Rg7 {[%clk 0:02:35.9]} 59... Kc8 {[%clk 0:00:21]} 60. Ka5 {[%clk 0:02:37.1]}
60... Kb8 {[%clk 0:00:21.7]} 61. b6 {[%clk 0:02:38.2]} 61... Rh1 {[%clk
0:00:22.1]} 62. Ka6 {[%clk 0:02:37.9]} 62... Ra1+ {[%clk 0:00:22.9]} 63. Kb5
{[%clk 0:02:39.1]} 63... Rb1+ {[%clk 0:00:24]} 64. Kc5 {[%clk 0:02:40.4]} 64...
Rc1+ {[%clk 0:00:25.4]} 65. Kb4 {[%clk 0:02:41.8]} 65... Rb1+ {[%clk 0:00:26.4]}
66. Ka5 {[%clk 0:02:42]} 66... Ra1+ {[%clk 0:00:27.4]} 67. Kb5 {[%clk
0:02:43.9]} 67... Rb1+ {[%clk 0:00:28.5]} 68. Kc6 {[%clk 0:02:45.7]} 68... Rc1+
{[%clk 0:00:29.7]} 69. Kd7 {[%clk 0:02:46.8]} 69... Kb7 {[%clk 0:00:29.4]} 70.
Rg6 {[%clk 0:02:37.7]} 70... Rd1+ {[%clk 0:00:29.6]} 71. Ke8 {[%clk 0:02:38.4]}
71... Re1+ {[%clk 0:00:30.1]} 72. Kf7 {[%clk 0:02:39]} 72... Rf1+ {[%clk
0:00:31.1]} 73. Rf6 {[%clk 0:02:39.6]} 73... Re1 {[%clk 0:00:32.3]} 74. Re6
{[%clk 0:02:40.3]} 74... Rf1+ {[%clk 0:00:33.3]} 75. Ke7 {[%clk 0:02:42.2]}
75... Rd1 {[%clk 0:00:34.1]} 76. Rd6 {[%clk 0:02:43.2]} 76... Rh1 {[%clk
0:00:31.5]} 77. Ke6 {[%clk 0:02:43.8]} 77... Rh6+ {[%clk 0:00:31.2]} 78. Kd5
{[%clk 0:02:45.7]} 78... Rh5+ {[%clk 0:00:31.8]} 79. Kc4 {[%clk 0:02:45.9]}
79... Rh4+ {[%clk 0:00:33]} 80. Kc5 {[%clk 0:02:46.7]} 80... Rh5+ {[%clk
0:00:33.4]} 81. Rd5 {[%clk 0:02:47.9]} 81... Rxd5+ {[%clk 0:00:33.9]} 82. Kxd5
{[%clk 0:02:48.7]} 82... Kxb6 {[%clk 0:00:35.8]} 1/2-1/2

[Event "*** Titled Tuesday Blitz"]
[Site "Chess.com"]
[Date "2019.03.05"]
[Round "2"]
[White "Arystanner"]
[Black "A-Fier"]
[Result "0-1"]
[WhiteElo "2647"]
[BlackElo "2753"]
[TimeControl "180+2"]
[EndTime "13:24:33 PST"]
[Termination "A-Fier won by resignation"]

1. e4 {[%clk 0:03:01.9]} 1... c5 {[%clk 0:03:00.4]} 2. Nf3 {[%clk 0:03:03.2]}
2... e6 {[%clk 0:03:00.3]} 3. c3 {[%clk 0:03:04.5]} 3... d5 {[%clk 0:03:00.6]}
4. exd5 {[%clk 0:03:05.9]} 4... Qxd5 {[%clk 0:03:02.5]} 5. d4 {[%clk 0:03:07.2]}
5... Nf6 {[%clk 0:03:04]} 6. Be3 {[%clk 0:03:07.2]} 6... cxd4 {[%clk 0:03:04.5]}
7. cxd4 {[%clk 0:03:09.1]} 7... Bb4+ {[%clk 0:03:05.4]} 8. Nc3 {[%clk
0:03:10.8]} 8... O-O {[%clk 0:03:07]} 9. Bd3 {[%clk 0:03:10.8]} 9... b6 {[%clk
0:03:06.9]} 10. O-O {[%clk 0:03:12.1]} 10... Bxc3 {[%clk 0:03:08.3]} 11. bxc3
{[%clk 0:03:14]} 11... Ba6 {[%clk 0:03:07.3]} 12. Bxa6 {[%clk 0:03:06.4]} 12...
Nxa6 {[%clk 0:03:08]} 13. Qd3 {[%clk 0:03:07.5]} 13... Nb8 {[%clk 0:03:08.6]}
14. c4 {[%clk 0:03:08.3]} 14... Qe4 {[%clk 0:03:09.7]} 15. Qb3 {[%clk
0:03:02.1]} 15... Nc6 {[%clk 0:03:09.5]} 16. Rac1 {[%clk 0:03:03.3]} 16... Rac8
{[%clk 0:03:09.8]} 17. Rfd1 {[%clk 0:03:01.4]} 17... Rfd8 {[%clk 0:03:10.3]} 18.
h3 {[%clk 0:03:00.2]} 18... h6 {[%clk 0:03:10.4]} 19. Qb5 {[%clk 0:02:46.8]}
19... Na5 {[%clk 0:02:49.4]} 20. Ne5 {[%clk 0:02:34.2]} 20... Qb7 {[%clk
0:02:43.1]} 21. c5 {[%clk 0:02:13.5]} 21... Nd5 {[%clk 0:02:34.7]} 22. c6 {[%clk
0:02:12.1]} 22... Qc7 {[%clk 0:02:34.9]} 23. Bd2 {[%clk 0:02:02.8]} 23... f6
{[%clk 0:02:35.6]} 24. Bxa5 {[%clk 0:02:03.3]} 24... fxe5 {[%clk 0:02:36.3]} 25.
Be1 {[%clk 0:02:00.3]} 25... e4 {[%clk 0:02:27.8]} 26. Bd2 {[%clk 0:01:48.4]}
26... Rf8 {[%clk 0:02:24.7]} 27. Qe2 {[%clk 0:01:46.9]} 27... Qf7 {[%clk
0:02:20.8]} 28. Qxe4 {[%clk 0:01:42.5]} 28... Qxf2+ {[%clk 0:02:21.6]} 29. Kh1
{[%clk 0:01:44.2]} 29... Qf5 {[%clk 0:02:18.8]} 30. Qxf5 {[%clk 0:01:43.2]}
30... Rxf5 {[%clk 0:02:19.8]} 31. a4 {[%clk 0:01:33.2]} 31... Ne7 {[%clk
0:02:14.6]} 32. c7 {[%clk 0:01:34.4]} 32... Nd5 {[%clk 0:02:15.8]} 33. Rc6
{[%clk 0:01:35.8]} 33... Kf7 {[%clk 0:02:12.4]} 34. Rdc1 {[%clk 0:01:19.9]}
34... Ke7 {[%clk 0:02:13.4]} 35. a5 {[%clk 0:01:20.5]} 35... Kd7 {[%clk
0:02:14.4]} 36. axb6 {[%clk 0:01:18.6]} 36... axb6 {[%clk 0:02:16.3]} 37. Kh2
{[%clk 0:01:03.3]} 37... Rxc7 {[%clk 0:02:14.1]} 38. Rxc7+ {[%clk 0:01:02.5]}
38... Nxc7 {[%clk 0:02:16]} 39. Be1 {[%clk 0:00:53.6]} 39... Nd5 {[%clk
0:02:16.3]} 40. Bg3 {[%clk 0:00:54]} 40... Rf8 {[%clk 0:02:14.6]} 41. Be5 {[%clk
0:00:50.9]} 41... g6 {[%clk 0:02:16]} 42. Ra1 {[%clk 0:00:51.9]} 42... Kc6
{[%clk 0:02:11.6]} 43. Bg7 {[%clk 0:00:45.8]} 43... Rf4 {[%clk 0:01:50.2]} 44.
Kg3 {[%clk 0:00:45]} 44... h5 {[%clk 0:01:49.4]} 45. Re1 {[%clk 0:00:35.8]}
45... Kd7 {[%clk 0:01:49.9]} 46. Ra1 {[%clk 0:00:32.7]} 46... h4+ {[%clk
0:01:49.6]} 47. Kh2 {[%clk 0:00:34.3]} 47... b5 {[%clk 0:01:50.5]} 48. Be5
{[%clk 0:00:33.9]} 48... Rf2 {[%clk 0:01:50.3]} 49. Ra7+ {[%clk 0:00:31.4]}
49... Kc8 {[%clk 0:01:51.4]} 50. Rg7 {[%clk 0:00:31.5]} 50... b4 {[%clk
0:01:50.7]} 51. Rxg6 {[%clk 0:00:33.1]} 51... b3 {[%clk 0:01:51.9]} 52. Rg8+
{[%clk 0:00:34.8]} 52... Kd7 {[%clk 0:01:51.8]} 53. Rb8 {[%clk 0:00:36]} 53...
b2 {[%clk 0:01:52.5]} 54. Rb7+ {[%clk 0:00:18.6]} 54... Kc6 {[%clk 0:01:52.5]}
55. Rb3 {[%clk 0:00:20.3]} 55... Rc2 {[%clk 0:01:49.8]} 56. Bg7 {[%clk 0:00:14]}
56... Kd7 {[%clk 0:01:50.3]} 57. Rb7+ {[%clk 0:00:13.9]} 57... Ke8 {[%clk
0:01:51]} 58. Be5 {[%clk 0:00:09]} 58... Nc3 {[%clk 0:01:49.3]} 59. Rb8+ {[%clk
0:00:10.3]} 59... Kf7 {[%clk 0:01:49.8]} 60. Rb7+ {[%clk 0:00:11.6]} 60... Kg6
{[%clk 0:01:51.1]} 61. Rg7+ {[%clk 0:00:11.9]} 61... Kh6 {[%clk 0:01:52.3]} 62.
Rg4 {[%clk 0:00:07.8]} 62... b1=Q {[%clk 0:01:52.6]} 63. Rxh4+ {[%clk
0:00:09.7]} 63... Kg6 {[%clk 0:01:53.6]} 64. Rg4+ {[%clk 0:00:11.6]} 64... Kf7
{[%clk 0:01:54.9]} 65. Rg7+ {[%clk 0:00:12.8]} 65... Kf8 {[%clk 0:01:56.1]} 66.
Rg3 {[%clk 0:00:13]} 66... Ne2 {[%clk 0:01:56]} 67. Rf3+ {[%clk 0:00:13.7]}
67... Kg8 {[%clk 0:01:57.4]} 68. h4 {[%clk 0:00:15.6]} 68... Qg1+ {[%clk
0:01:56.7]} 69. Kh3 {[%clk 0:00:17.3]} 69... Nf4+ {[%clk 0:01:57]} 0-1

[Event "*** Titled Tuesday Blitz"]
[Site "Chess.com"]
[Date "2019.03.05"]
[Round "2"]
[White "chess4life23"]
[Black "Last7Samurai"]
[Result "0-1"]
[WhiteElo "2338"]
[BlackElo "2676"]
[TimeControl "180+2"]
[EndTime "13:24:33 PST"]
[Termination "Last7Samurai won by resignation"]

1. d4 {[%clk 0:03:01.9]} 1... d5 {[%clk 0:03:00.3]} 2. c4 {[%clk 0:03:02]} 2...
c6 {[%clk 0:03:01]} 3. e3 {[%clk 0:03:02.4]} 3... Nf6 {[%clk 0:03:01.8]} 4. Nc3
{[%clk 0:03:03.5]} 4... e6 {[%clk 0:03:02.3]} 5. Nf3 {[%clk 0:03:04.5]} 5... a6
{[%clk 0:03:02.4]} 6. Qc2 {[%clk 0:03:05.2]} 6... Nbd7 {[%clk 0:03:02]} 7. Bd3
{[%clk 0:03:06.2]} 7... dxc4 {[%clk 0:03:00.7]} 8. Bxc4 {[%clk 0:03:07.4]} 8...
b5 {[%clk 0:03:02.1]} 9. Be2 {[%clk 0:03:08.4]} 9... c5 {[%clk 0:03:03.6]} 10.
O-O {[%clk 0:03:08.2]} 10... Bb7 {[%clk 0:03:04.2]} 11. Rd1 {[%clk 0:03:08.3]}
11... Rc8 {[%clk 0:03:04.1]} 12. Ne5 {[%clk 0:03:05.5]} 12... Qc7 {[%clk
0:03:01.9]} 13. Nxd7 {[%clk 0:02:59.8]} 13... Nxd7 {[%clk 0:03:03.8]} 14. d5
{[%clk 0:02:59.6]} 14... Nf6 {[%clk 0:02:35]} 15. dxe6 {[%clk 0:02:57]} 15...
fxe6 {[%clk 0:02:36.9]} 16. Bd3 {[%clk 0:02:30]} 16... Bd6 {[%clk 0:02:32.3]}
17. h3 {[%clk 0:02:24.5]} 17... c4 {[%clk 0:02:27.6]} 18. Be4 {[%clk 0:02:18.7]}
18... Nxe4 {[%clk 0:02:27.5]} 19. Nxe4 {[%clk 0:02:19.5]} 19... Be7 {[%clk
0:02:29]} 20. Bd2 {[%clk 0:02:13.4]} 20... O-O {[%clk 0:02:12.6]} 21. Bc3 {[%clk
0:02:11.6]} 21... b4 {[%clk 0:02:12.1]} 22. Be1 {[%clk 0:02:00.9]} 22... Bd5
{[%clk 0:02:09.8]} 23. a3 {[%clk 0:01:53.9]} 23... Qb7 {[%clk 0:02:02.9]} 24. f3
{[%clk 0:01:37]} 24... a5 {[%clk 0:01:47.4]} 25. axb4 {[%clk 0:01:34.5]} 25...
axb4 {[%clk 0:01:49.3]} 26. Bg3 {[%clk 0:01:17.9]} 26... Rfd8 {[%clk 0:01:45.5]}
27. Be5 {[%clk 0:01:14.3]} 27... Rd7 {[%clk 0:00:59.2]} 28. Rd4 {[%clk
0:01:14.1]} 28... Rcd8 {[%clk 0:00:56.6]} 29. Rad1 {[%clk 0:01:13.2]} 29... Qb6
{[%clk 0:00:51]} 30. Kh1 {[%clk 0:01:00]} 30... c3 {[%clk 0:00:45.9]} 31. bxc3
{[%clk 0:00:51.7]} 31... b3 {[%clk 0:00:46.8]} 32. Qb1 {[%clk 0:00:48.5]} 32...
Qc6 {[%clk 0:00:43.4]} 33. Qd3 {[%clk 0:00:29.8]} 33... b2 {[%clk 0:00:40.3]}
34. c4 {[%clk 0:00:24.5]} 34... Bxc4 {[%clk 0:00:34.1]} 35. Qc3 {[%clk
0:00:18.2]} 35... Rxd4 {[%clk 0:00:33.5]} 36. Bxd4 {[%clk 0:00:19.5]} 36... Qb5
{[%clk 0:00:25]} 37. Rb1 {[%clk 0:00:16.9]} 37... e5 {[%clk 0:00:25.7]} 38. Bxe5
{[%clk 0:00:16]} 38... Rd3 {[%clk 0:00:18.5]} 39. Qxb2 {[%clk 0:00:16]} 39...
Qxb2 {[%clk 0:00:19.1]} 40. Rxb2 {[%clk 0:00:17.2]} 40... Rxe3 {[%clk
0:00:20.4]} 41. Rb7 {[%clk 0:00:18.2]} 41... Bf8 {[%clk 0:00:15.7]} 42. Rb8
{[%clk 0:00:18.9]} 42... Kf7 {[%clk 0:00:16]} 43. Bf4 {[%clk 0:00:15.3]} 43...
Re1+ {[%clk 0:00:15.6]} 44. Kh2 {[%clk 0:00:16.8]} 44... Be7 {[%clk 0:00:14.1]}
45. Rb7 {[%clk 0:00:17.2]} 45... Bd5 {[%clk 0:00:15.3]} 46. Ng5+ {[%clk
0:00:18]} 46... Kg6 {[%clk 0:00:15.8]} 47. h4 {[%clk 0:00:17.1]} 47... Bxb7
{[%clk 0:00:16.1]} 0-1